[Event "GER-chT Youth Countries 2018"]
[Site "Wurzburg"]
[Date "2018.10.05"]
[Round "5"]
[White "Boehm, Jana"]
[Black "Mundt, Alexandra"]
[Result "1/2-1/2"]
[ECO "C42"]
[WhiteElo "2001"]
[BlackElo "1679"]
[Annotator "NA"]
[PlyCount "66"]
[EventDate "2018.10.03"]
[EventType "team-tourn"]
[EventCountry "GER"]
[SourceTitle "playchess.com"]
[Source "ChessBase"]
[SourceQuality "1"]
[TimeControl "40/5400+30:1800+30"]

1. e4 {[%emt 0:00:00]} e5 {[%emt 0:00:00]} 2. Nf3 {[%emt 0:00:00]} Nf6 {[%emt 0:00:00]} 3. Nxe5 {[%emt 0:00:00]} d6 {[%emt 0:00:00]} 4. Nf3 {[%emt 0:00:00]} Nxe4 {[%emt 0:00:00]} 5. Nc3 {[%emt 0:00:00]} Nf6 {[%emt 0:00:22]} 6. d4 {[%emt 0:00:32]} Be7 {[%emt 0:00:19]} 7. Bd3 {[%emt 0:04:26]} O-O {[%emt 0:00:46]} 8. h3 {[%emt 0:02:00] C42: Petroff Defence: 3 Nxe5 and unusual White 3rd moves} (8. O-O Nc6 9. d5 Ne5 10. Nxe5 dxe5 11. Re1 Nd7 12. Ne4 Nf6 13. Nxf6+ Bxf6 14. Qf3 Re8 15. c4 b6 {0-1 (41) Wei,Y (2729)-Yu,Y (2762) Danzhou 2018}) 8... Re8 {[%emt 0:01:29]} 9. Be3 {[%emt 0:03:26]} Nbd7 {[%emt 0:04:12]} 10. Qd2 {[%emt 0:01:47]} Nb6 $146 {[%emt 0:05:31]} ({Predecessor:} 10... Nf8 11. O-O-O c6 12. Ng5 b5 13. Nge4 Qa5 14. Kb1 Nxe4 15. Nxe4 Qxd2 16. Rxd2 {½-½ (90) Nikolovski,N (1996)-Zagorsek,D (1734) Budva 2013}) 11. O-O {[%emt 0:08:28]} Be6 {[%emt 0:05:33]} 12. b3 {[%emt 0:04:10]} Qd7 {[%emt 0:05:06]} 13. Ne4 {[%emt 0:04:02]} Rad8 {[%emt 0:09:27]} 14. c4 {[%emt 0:04:03]} Nxe4 {[%emt 0:06:40]} 15. Bxe4 {[%emt 0:01:23]} d5 {[%emt 0:01:31]} 16. Ne5 {[%emt 0:01:22]} Qc8 {[%emt 0:00:14]} 17. Bd3 {[%emt 0:05:30]} f6 {[%emt 0:01:56]} 18. cxd5 {[%emt 0:02:42]} fxe5 {[%emt 0:13:15]} 19. dxe6 {[%emt 0:00:10]} exd4 {[%emt 0:00:26]} 20. Bf4 {[%emt 0:02:31]} Nd5 {[%emt 0:04:54]} 21. Be5 {[%emt 0:01:16]} c5 {[%emt 0:06:10]} 22. Qc2 $11 {[%emt 0:04:52]} (22. Rae1 $16) 22... Qxe6 {[%emt 0:10:54]} 23. Bxh7+ {[%emt 0:00:28]} Kh8 {[%emt 0:00:27]} 24. Rfe1 {[%emt 0:02:14]} Bf6 {[%emt 0:03:49]} 25. Bf5 {[%emt 0:06:27]} Qe7 {[%emt 0:02:37]} 26. Qd1 {[%emt 0:07:01]} Bxe5 {[%emt 0:02:18]} 27. Qh5+ {[%emt 0:00:06]} Kg8 {[%emt 0:00:13]} 28. Qh7+ {[%emt 0:11:56]} Kf8 {[%emt 0:00:31]} 29. Qh8+ {[%emt 0:01:30]} Kf7 {[%emt 0:00:13]} 30. Qh5+ {[%emt 0:00:03]} Kg8 {[%emt 0:00:28]} 31. Qh7+ {[%emt 0:06:03]} Kf8 {[%emt 0:00:13]} 32. Qh8+ {[%emt 0:00:32]} Kf7 {[%emt 0:00:05]} 33. Qh5+ {[%emt 0:00:08]} Kg8 {[%emt 0:00:06]} 1/2-1/2

[Event "GER-chT Youth Countries 2018"]
[Site "Wurzburg"]
[Date "2018.10.05"]
[Round "5"]
[White "Wu, Luka"]
[Black "Wagner, Leopold Franziskus"]
[Result "1/2-1/2"]
[ECO "B18"]
[WhiteElo "2001"]
[BlackElo "1934"]
[Annotator "NA"]
[PlyCount "105"]
[EventDate "2018.10.03"]
[EventType "team-tourn"]
[EventCountry "GER"]
[SourceTitle "playchess.com"]
[Source "ChessBase"]
[SourceQuality "1"]
[TimeControl "40/5400+30:1800+30"]

1. e4 {[%emt 0:00:00]} c6 {[%emt 0:00:00]} 2. d4 {[%emt 0:00:00]} d5 {[%emt 0:00:00]} 3. Nc3 {[%emt 0:00:00]} dxe4 {[%emt 0:00:00]} 4. Nxe4 {[%emt 0:00:00]} Bf5 {[%emt 0:00:00]} 5. Ng3 {[%emt 0:00:14]} Bg6 {[%emt 0:00:00]} 6. h4 {[%emt 0:00:35]} h6 {[%emt 0:00:00]} 7. h5 {[%emt 0:00:04]} Bh7 {[%emt 0:00:02]} 8. Nf3 {[%emt 0:00:04]} e6 {[%emt 0:00:16]} 9. Bd3 {[%emt 0:00:41]} Bxd3 {[%emt 0:00:05]} 10. Qxd3 {[%emt 0:00:04]} Nf6 {[%emt 0:00:11]} 11. Bd2 {[%emt 0:02:54]} Nbd7 {[%emt 0:00:29]} 12. O-O-O {[%emt 0:01:27]} Bd6 {[%emt 0:02:01]} 13. Ne2 {[%emt 0:03:50]} Ng4 {[%emt 0:03:20]} 14. Be3 {[%emt 0:06:54]} Ndf6 {[%emt 0:01:25]} 15. Kb1 {[%emt 0:03:31]} Nd5 {[%emt 0:02:15]} 16. Rdf1 {[%emt 0:02:48]} Qc7 {[%emt 0:03:39]} 17. c4 {[%emt 0:01:46]} Ndxe3 {[%emt 0:01:47]} 18. fxe3 $11 {[%emt 0:00:18]} O-O-O {[%emt 0:04:32]} 19. Nd2 {[%emt 0:04:50]} Rhf8 {[%emt 0:14:08]} 20. Nc3 {[%emt 0:08:19]} f5 {[%emt 0:02:23]} 21. Ne2 {[%emt 0:05:40]} Kb8 {[%emt 0:02:43]} 22. Qc3 {[%emt 0:01:51]} e5 {[%emt 0:02:02]} 23. c5 {[%emt 0:03:03]} Be7 {[%emt 0:00:45]} 24. Nc4 {[%emt 0:00:10]} Bf6 {[%emt 0:04:15]} 25. Rxf5 {[%emt 0:05:44]} exd4 {[%emt 0:00:21]} 26. exd4 {[%emt 0:00:10]} Qe7 {[%emt 0:01:59]} 27. Qf3 {[%emt 0:03:33]} Rfe8 {[%emt 0:03:05]} 28. Ng3 {[%emt 0:29:08]} Ne3 {[%emt 0:03:03]} 29. Nd6 {[%emt 0:00:18]} Nxf5 {[%emt 0:10:39]} 30. Ngxf5 {[%emt 0:00:17]} Qe2 {[%emt 0:00:15]} 31. Qb3 {[%emt 0:00:57]} Re7 {[%emt 0:13:20]} 32. Nxe7 {[%emt 0:01:42]} Qxe7 {[%emt 0:00:16]} 33. Qb4 {[%emt 0:05:54]} Qd7 {[%emt 0:04:32]} 34. Rh3 {[%emt 0:01:53]} Be7 {[%emt 0:01:21]} 35. Rf3 {[%emt 0:06:33]} Bxd6 {[%emt 0:00:33]} 36. cxd6 {[%emt 0:00:06]} Qxd6 {[%emt 0:00:39]} 37. Qxd6+ {[%emt 0:00:28]} Rxd6 {[%emt 0:00:04]} 38. Rg3 {[%emt 0:00:21]} Rd7 {[%emt 0:00:24]} 39. Rg6 {[%emt 0:00:44]} Kc8 {[%emt 0:01:38]} 40. Kc2 {[%emt 0:01:25]} Kd8 {[%emt 0:00:20]} 41. Kc3 {[%emt 0:30:31]} Ke8 {[%emt 0:30:09]} 42. Rg4 {[%emt 0:01:11]} Kf7 {[%emt 0:00:49]} 43. Rf4+ {[%emt 0:00:00]} Ke6 {[%emt 0:00:00]} 44. g4 {[%emt 0:00:00]} Re7 {[%emt 0:00:00]} 45. Kd3 {[%emt 0:00:00]} Rf7 {[%emt 0:00:00]} 46. Rxf7 {[%emt 0:00:00]} Kxf7 {[%emt 0:00:00]} 47. Ke4 {[%emt 0:00:00]} Ke6 {[%emt 0:00:00]} 48. b3 {[%emt 0:00:00]} b6 {[%emt 0:00:00]} 49. b4 {[%emt 0:00:00]} b5 {[%emt 0:00:00]} 50. a3 {[%emt 0:00:00]} a6 {[%emt 0:00:00]} 51. Ke3 {[%emt 0:00:00]} Ke7 {[%emt 0:00:00]} 52. Ke4 {[%emt 0:00:00]} Ke6 {[%emt 0:00:00]} 53. Ke3 {[%emt 0:00:00] Ke5 Ke4+} 1/2-1/2

[Event "GER-chT Youth Countries 2018"]
[Site "Wurzburg"]
[Date "2018.10.05"]
[Round "5"]
[White "Grund, Sebastian"]
[Black "Huber, Benedikt"]
[Result "0-1"]
[ECO "A46"]
[WhiteElo "1992"]
[BlackElo "2116"]
[Annotator "NA RC"]
[PlyCount "50"]
[EventDate "2018.10.03"]
[EventType "team-tourn"]
[EventCountry "GER"]
[SourceTitle "playchess.com"]
[Source "ChessBase"]
[SourceQuality "1"]
[TimeControl "40/5400+30:1800+30"]

1. d4 {[%emt 0:00:00]} Nf6 {[%emt 0:00:00]} 2. Nf3 {[%emt 0:00:00]} e6 {[%emt 0:00:09]} 3. c4 {[%emt 0:00:00]} d5 {[%emt 0:00:09]} 4. g3 {[%emt 0:00:00]} Bb4+ {[%emt 0:00:14]} 5. Bd2 {[%emt 0:00:01]} Bd6 {[%emt 0:00:45]} 6. Bg2 {[%emt 0:00:11]} c6 {[%emt 0:00:22]} 7. O-O {[%emt 0:00:11]} O-O {[%emt 0:00:23]} 8. Qc2 {[%emt 0:01:01]} Ne4 {[%emt 0:00:55]} 9. Nc3 {[%emt 0:01:49]} Nxd2 {[%emt 0:00:49]} 10. Nxd2 {[%emt 0:00:09]} f5 {[%emt 0:00:17]} 11. c5 {[%emt 0:09:42]} Bc7 {[%emt 0:03:42]} 12. b4 {[%emt 0:00:28]} Nd7 {[%emt 0:02:16]} 13. e3 {[%emt 0:03:20]} e5 {[%emt 0:08:04]} 14. f4 {[%emt 0:02:57]} e4 {[%emt 0:07:00]} 15. b5 {[%emt 0:01:17]} Nf6 {[%emt 0:04:04]} 16. bxc6 {[%emt 0:02:05]} bxc6 {[%emt 0:00:14]} 17. Qa4 {[%emt 0:00:15]} Qe8 {[%emt 0:00:16]} 18. Rfb1 {[%emt 0:05:01]} a5 $17 {[%emt 0:03:59]} 19. Qa3 {[%emt 0:03:00]} Qh5 {[%emt 0:15:22]} 20. Na4 {[%emt 0:01:41]} Ba6 {[%emt 0:01:43]} 21. Bf1 {[%emt 0:02:32]} Ng4 {[%emt 0:14:32]} 22. h3 {[%emt 0:01:12]} Nh6 {[%emt 0:00:22]} 23. Kg2 Be2 {[%emt 0:09:24]} 24. Rb2 {[%emt 0:03:27]} Bg4 {[%emt 0:03:16]} 25. h4 {[%emt 0:01:08]} g5 {[%emt 0:02:21]} 0-1

[Event "GER-chT Youth Countries 2018"]
[Site "Wurzburg"]
[Date "2018.10.05"]
[Round "5"]
[White "Laux, Dominik"]
[Black "Koenze, Heike"]
[Result "1/2-1/2"]
[ECO "A40"]
[WhiteElo "1987"]
[BlackElo "1845"]
[Annotator "NA RC"]
[PlyCount "83"]
[EventDate "2018.10.03"]
[EventType "team-tourn"]
[EventCountry "GER"]
[SourceTitle "playchess.com"]
[Source "ChessBase"]
[SourceQuality "1"]
[TimeControl "40/5400+30:1800+30"]

1. d4 {[%emt 0:00:00]} e6 {[%emt 0:00:00]} 2. Bf4 {[%emt 0:00:00]} d5 {[%emt 0:00:00]} 3. e3 {[%emt 0:00:13]} Nf6 {[%emt 0:00:17]} 4. Nf3 {[%emt 0:00:43]} c5 {[%emt 0:01:55]} 5. c3 {[%emt 0:01:09]} Be7 {[%emt 0:01:33]} 6. Nbd2 {[%emt 0:01:31]} Nc6 {[%emt 0:02:11]} 7. Bd3 {[%emt 0:01:11]} Nh5 {[%emt 0:05:12]} 8. Bg3 {[%emt 0:01:27]} cxd4 {[%emt 0:03:16] D02: 1 d4 d5 2 Nf3 sidelines, including 2...Nf6 3 g3 and 2...Nf6 3 Bf4} (8... Nxg3 9. hxg3 h6 10. Qe2 a6 11. a3 b6 12. Rd1 Bb7 13. e4 cxd4 14. cxd4 dxe4 15. Nxe4 Qd5 16. Nc3 {1-0 (26) Berkes,F (2669)-Pap,M (2502) Neustadt an der Weinstrasse 2018}) 9. exd4 {[%emt 0:01:45]} Nxg3 {[%emt 0:00:42]} 10. hxg3 {[%emt 0:01:33]} h6 {[%emt 0:01:48]} 11. O-O {[%emt 0:03:21]} Bd7 $146 {[%emt 0:03:19]} ({Predecessor:} 11... a6 12. Qe2 Bd7 13. Rfe1 b5 14. b4 {½-½ (50) Schwertel,J (2021)-Zunker,R (2189) Halle 2011}) 12. Re1 {[%emt 0:01:59]} Qb6 {[%emt 0:02:21]} 13. Rb1 {[%emt 0:03:34]} h5 {[%emt 0:06:55]} 14. Ne5 {[%emt 0:05:47]} Nxe5 {[%emt 0:00:19]} 15. Rxe5 {[%emt 0:00:15]} h4 {[%emt 0:01:09]} 16. gxh4 {[%emt 0:05:27]} Bxh4 {[%emt 0:01:50]} 17. Rh5 {[%emt 0:03:13]} O-O-O {[%emt 0:01:04]} 18. Rxh8 {[%emt 0:07:30]} Rxh8 {[%emt 0:00:19]} 19. Nf3 {[%emt 0:00:43]} Bf6 {[%emt 0:03:26]} 20. Bf1 {[%emt 0:06:42]} Qd6 {[%emt 0:04:34]} 21. Qe2 {[%emt 0:04:37]} Qf4 {[%emt 0:05:16]} 22. g3 {[%emt 0:01:42]} Qf5 {[%emt 0:09:06]} 23. Rc1 {[%emt 0:06:10]} Qh5 {[%emt 0:00:31]} 24. Bg2 {[%emt 0:01:07]} e5 $14 {[%emt 0:03:37]} (24... Bc6 $11) 25. dxe5 {[%emt 0:07:42]} Bh3 {[%emt 0:01:45]} 26. Qf1 {[%emt 0:09:15]} Bxg2 {[%emt 0:00:13]} 27. Qxg2 {[%emt 0:00:24]} Bxe5 {[%emt 0:00:23]} 28. Nxe5 {[%emt 0:06:37]} Qxe5 {[%emt 0:00:13]} 29. Rd1 {[%emt 0:00:52]} Rh5 {[%emt 0:04:46]} 30. Qf3 {[%emt 0:02:28]} Qf5 {[%emt 0:02:13]} 31. Qe2 {[%emt 0:05:26]} Qe5 {[%emt 0:00:56]} 32. Qxe5 {[%emt 0:03:19]} Rxe5 {[%emt 0:00:08]} 33. Rd2 {[%emt 0:00:35]} Kc7 {[%emt 0:00:27]} 34. f4 {[%emt 0:01:26]} Rf5 {[%emt 0:00:23]} 35. Kf2 {[%emt 0:00:35]} Kc6 {[%emt 0:01:57]} 36. Kf3 {[%emt 0:01:36]} Rf6 {[%emt 0:00:54]} 37. Rh2 {[%emt 0:03:40]} Kc5 {[%emt 0:02:15]} 38. g4 {[%emt 0:01:04]} g5 {[%emt 0:01:54]} 39. f5 {[%emt 0:00:27]} Rb6 {[%emt 0:01:12]} 40. Ke3 {[%emt 0:01:59]} f6 {[%emt 0:01:49]} 41. Kd3 {[%emt 0:02:10]} a5 {[%emt 0:02:30]} 42. Re2 {[%emt 0:09:27]} 1/2-1/2

[Event "GER-chT Youth Countries 2018"]
[Site "Wurzburg"]
[Date "2018.10.05"]
[Round "5"]
[White "Halas, Julia"]
[Black "Lesny, Florian"]
[Result "0-1"]
[ECO "D52"]
[WhiteElo "1972"]
[BlackElo "2073"]
[Annotator "NA RC"]
[PlyCount "102"]
[EventDate "2018.10.03"]
[EventType "team-tourn"]
[EventCountry "GER"]
[SourceTitle "playchess.com"]
[Source "ChessBase"]
[SourceQuality "1"]
[TimeControl "40/5400+30:1800+30"]

1. d4 {[%emt 0:00:00]} d5 {[%emt 0:00:00]} 2. c4 {[%emt 0:00:00]} c6 {[%emt 0:00:00]} 3. Nf3 {[%emt 0:00:00]} Nf6 {[%emt 0:00:01]} 4. Nc3 {[%emt 0:00:00]} e6 {[%emt 0:00:12]} 5. Bg5 {[%emt 0:00:00]} Nbd7 {[%emt 0:00:12]} 6. e3 {[%emt 0:00:03]} Qa5 {[%emt 0:00:12]} 7. Nd2 {[%emt 0:00:07]} Bb4 {[%emt 0:01:09]} 8. Qc2 {[%emt 0:00:11]} dxc4 {[%emt 0:03:54]} 9. Bxf6 {[%emt 0:01:10]} Nxf6 {[%emt 0:00:12]} 10. Nxc4 {[%emt 0:00:08]} Qc7 {[%emt 0:00:46]} 11. Be2 {[%emt 0:02:56]} O-O {[%emt 0:01:02]} 12. O-O {[%emt 0:00:52]} Rd8 {[%emt 0:03:04]} 13. Bf3 {[%emt 0:00:55] D52: Queen's Gambit Declined: Cambridge Springs Variation} (13. Rac1 Bd7 14. a3 Bf8 15. b4 Be8 16. Rfd1 Rac8 17. e4 Nd7 18. e5 f6 19. exf6 gxf6 20. Bd3 f5 {½-½ (29) Lupulescu,C (2638)-Esen,B (2553) Sarajevo 2011}) 13... Bd7 {[%emt 0:07:03]} 14. a3 {[%emt 0:04:18]} Bf8 {[%emt 0:02:11]} 15. b4 {[%emt 0:06:09]} Rac8 $146 {[%emt 0:04:02]} ({Predecessor:} 15... Be8 16. Rfd1 Nd5 17. Ne4 g6 18. Rac1 Rac8 19. h4 h6 20. Qb3 Bg7 {1-0 (67) Bobula,M (2417)-Staniszewski,P (2402) Chotowa 2007}) 16. Rac1 {[%emt 0:04:33]} b6 {[%emt 0:02:35]} 17. Ne4 {[%emt 0:22:58]} Nxe4 {[%emt 0:01:25]} 18. Qxe4 {[%emt 0:01:58]} c5 {[%emt 0:03:32]} 19. dxc5 {[%emt 0:05:31]} bxc5 {[%emt 0:00:47]} 20. bxc5 {[%emt 0:11:02]} Qxc5 {[%emt 0:01:35]} 21. Qb1 {[%emt 0:15:28]} Qb5 {[%emt 0:03:39]} 22. Nd2 $17 {[%emt 0:03:37]} (22. Qa2 $142) 22... Bxa3 {[%emt 0:06:33]} 23. Rcd1 {[%emt 0:07:36]} Qxb1 {[%emt 0:02:44]} 24. Rxb1 {[%emt 0:00:24]} Rb8 {[%emt 0:04:09]} 25. Nc4 {[%emt 0:07:43]} Bc5 {[%emt 0:02:16]} 26. Rxb8 {[%emt 0:00:56]} Rxb8 {[%emt 0:00:19]} 27. h3 {[%emt 0:01:05]} f6 {[%emt 0:03:54]} 28. Rd1 {[%emt 0:00:43]} Be8 {[%emt 0:01:06]} 29. Na5 {[%emt 0:02:02]} Kf8 {[%emt 0:09:19]} 30. Nb7 Bb6 {[%emt 0:00:47]} 31. Rc1 {[%emt 0:01:42]} Ke7 {[%emt 0:00:46]} 32. Kf1 {[%emt 0:00:07]} Bb5+ {[%emt 0:00:55]} 33. Ke1 {[%emt 0:00:51]} Ba6 {[%emt 0:00:44]} 34. Nc5 {[%emt 0:00:19]} Bc8 {[%emt 0:02:56]} 35. Na4 {[%emt 0:00:59]} Ba5+ {[%emt 0:01:03]} 36. Kd1 {[%emt 0:00:10]} Bd7 {[%emt 0:02:34]} 37. Nc5 {[%emt 0:00:51]} Bb5 {[%emt 0:01:21]} 38. Nb7 {[%emt 0:00:19]} Bb6 {[%emt 0:01:21]} 39. Ra1 {[%emt 0:00:52]} Rc8 {[%emt 0:01:55]} 40. Na5 {[%emt 0:00:22]} f5 {[%emt 0:04:21]} 41. Ra3 {[%emt 0:04:54]} e5 {[%emt 0:01:42]} 42. e4 {[%emt 0:05:48]} g6 {[%emt 0:02:43]} 43. Ra2 {[%emt 0:02:27]} Rd8+ {[%emt 0:01:13]} 44. Kc1 {[%emt 0:00:49]} Ke6 {[%emt 0:05:39]} 45. g4 {[%emt 0:03:08]} Rc8+ {[%emt 0:03:22]} 46. Kd1 {[%emt 0:01:37]} Rc3 {[%emt 0:00:44]} 47. exf5+ {[%emt 0:00:47]} gxf5 {[%emt 0:00:16]} 48. gxf5+ {[%emt 0:01:37]} Kxf5 {[%emt 0:00:10]} 49. Bg4+ {[%emt 0:06:24]} Kf4 {[%emt 0:00:33]} 50. Nb7 {[%emt 0:03:13]} Bc6 {[%emt 0:03:28]} 51. Na5 {[%emt 0:02:20]} Bd5 {[%emt 0:06:27]} 0-1

[Event "GER-chT Youth Countries 2018"]
[Site "Wurzburg"]
[Date "2018.10.05"]
[Round "5"]
[White "Arnhold, Steffi"]
[Black "Astner, Sebastian"]
[Result "0-1"]
[ECO "B00"]
[WhiteElo "1955"]
[BlackElo "1849"]
[Annotator "NA RC"]
[PlyCount "94"]
[EventDate "2018.10.03"]
[EventType "team-tourn"]
[EventCountry "GER"]
[SourceTitle "playchess.com"]
[Source "ChessBase"]
[SourceQuality "1"]
[TimeControl "40/5400+30:1800+30"]

1. e4 {[%emt 0:00:00]} Nc6 {[%emt 0:00:00]} 2. d4 {[%emt 0:00:03]} d5 {[%emt 0:00:00]} 3. e5 {[%emt 0:01:34]} f6 {[%emt 0:00:00]} 4. f4 {[%emt 0:01:40]} Bf5 {[%emt 0:00:00]} 5. Nf3 {[%emt 0:01:26]} Nh6 6. Bd3 {[%emt 0:06:51]} e6 {[%emt 0:02:09]} 7. c3 {[%emt 0:05:41]} Be7 {[%emt 0:02:04]} 8. Qe2 {[%emt 0:07:01]} Qd7 {[%emt 0:03:11]} 9. Be3 {[%emt 0:04:30]} O-O {[%emt 0:04:12]} 10. Nbd2 {[%emt 0:02:17]} a6 {[%emt 0:03:29]} 11. Nf1 {[%emt 0:03:00]} b5 {[%emt 0:03:26]} 12. Ng3 {[%emt 0:03:04]} Bxd3 {[%emt 0:06:29]} 13. Qxd3 {[%emt 0:00:07]} fxe5 $14 {[%emt 0:00:17]} 14. fxe5 {[%emt 0:01:30]} Na5 {[%emt 0:02:43]} 15. O-O {[%emt 0:06:22]} Nf5 {[%emt 0:04:06]} 16. Ng5 {[%emt 0:06:58]} Bxg5 {[%emt 0:07:21]} 17. Bxg5 {[%emt 0:02:42]} Nxg3 {[%emt 0:01:24]} 18. Qxg3 {[%emt 0:00:17]} Rxf1+ {[%emt 0:00:55]} 19. Rxf1 {[%emt 0:00:22]} Rf8 {[%emt 0:00:28]} 20. Rxf8+ {[%emt 0:02:11]} Kxf8 {[%emt 0:00:06]} 21. Qf3+ {[%emt 0:03:03]} Qf7 {[%emt 0:01:22]} 22. Qxf7+ {[%emt 0:03:57]} Kxf7 {[%emt 0:00:02]} 23. Bd8 {[%emt 0:00:35]} Nc4 {[%emt 0:05:25]} 24. b3 {[%emt 0:01:29]} Ne3 {[%emt 0:04:31]} 25. Bxc7 {[%emt 0:01:21]} Kg6 {[%emt 0:00:42]} 26. Kf2 {[%emt 0:15:52]} Nd1+ {[%emt 0:01:18]} 27. Ke1 {[%emt 0:05:59]} Nxc3 {[%emt 0:00:50]} 28. a3 {[%emt 0:01:20]} b4 {[%emt 0:03:45]} 29. Ba5 {[%emt 0:04:20]} Nb5 {[%emt 0:00:31]} 30. Bxb4 {[%emt 0:01:35]} Nxd4 {[%emt 0:00:39]} 31. Kd2 {[%emt 0:00:40]} Kf5 {[%emt 0:00:37]} 32. Kd3 {[%emt 0:02:47]} Nc6 {[%emt 0:00:24]} 33. Bd6 {[%emt 0:01:10]} Nxe5+ {[%emt 0:00:43]} 34. Kd4 {[%emt 0:00:58]} Nc6+ {[%emt 0:04:04]} 35. Kc5 {[%emt 0:00:43]} Na5 {[%emt 0:00:45]} 36. Kb6 {[%emt 0:01:48]} Nxb3 {[%emt 0:00:22]} 37. Kxa6 {[%emt 0:00:29]} d4 {[%emt 0:00:14]} 38. Kb5 {[%emt 0:00:33]} d3 {[%emt 0:00:52]} 39. Bb4 {[%emt 0:00:40]} d2 {[%emt 0:01:33]} 40. Bxd2 {[%emt 0:00:17]} Nxd2 {[%emt 0:00:03]} 41. a4 {[%emt 0:30:34]} Nb3 {[%emt 0:31:27]} 42. Kb4 {[%emt 0:01:02]} Nd4 {[%emt 0:01:23]} 43. Kc5 {[%emt 0:00:58]} e5 {[%emt 0:01:09]} 44. Kc4 {[%emt 0:00:00]} Nc6 {[%emt 0:00:00]} 45. Kd3 {[%emt 0:00:00]} e4+ {[%emt 0:00:00]} 46. Ke3 {[%emt 0:00:00]} Ke5 {[%emt 0:00:00]} 47. g3 {[%emt 0:00:00]} Na5 {[%emt 0:00:00]} 0-1

[Event "GER-chT Youth Countries 2018"]
[Site "Wurzburg"]
[Date "2018.10.05"]
[Round "5"]
[White "Schallner, Marc"]
[Black "Wiesner, Paula"]
[Result "0-1"]
[ECO "C01"]
[WhiteElo "1932"]
[BlackElo "1969"]
[Annotator "NA RC"]
[PlyCount "154"]
[EventDate "2018.10.03"]
[EventType "team-tourn"]
[EventCountry "GER"]
[SourceTitle "playchess.com"]
[Source "ChessBase"]
[SourceQuality "1"]
[TimeControl "40/5400+30:1800+30"]

1. e4 {[%emt 0:00:00]} e6 {[%emt 0:00:00]} 2. d4 {[%emt 0:00:00]} d5 {[%emt 0:00:00]} 3. exd5 {[%emt 0:00:00]} exd5 {[%emt 0:00:00]} 4. Nf3 {[%emt 0:00:00]} Bg4 {[%emt 0:00:00]} 5. Bd3 {[%emt 0:01:29]} Nf6 {[%emt 0:04:54]} 6. O-O {[%emt 0:00:51]} Bd6 {[%emt 0:01:19] C01: French: Exchange Variation} (6... Be7 7. c3 O-O 8. Re1 c5 9. dxc5 Bxc5 10. Be3 Bxe3 11. Rxe3 Nc6 12. Nbd2 d4 13. cxd4 Nxd4 14. Qa4 Nf5 15. Bxf5 Bxf5 {½-½ (42) Areshchenko,A (2709)-Kaidanov,G (2574) Tromsoe 2013}) 7. Re1+ {[%emt 0:03:28]} Be7 {[%emt 0:00:17]} 8. Bf4 {[%emt 0:00:46]} O-O {[%emt 0:00:21]} 9. Nbd2 {[%emt 0:01:13]} Nbd7 {[%emt 0:03:27]} 10. c3 {[%emt 0:01:03]} Re8 {[%emt 0:02:19]} 11. Qc2 {[%emt 0:01:43]} c5 {[%emt 0:04:26]} 12. Ne5 $146 {[%emt 0:14:30]} ({Predecessor:} 12. dxc5 Nxc5 {0-1 (34) Stulken,D (1352)-Richter,E (1246) Frankfurt 2008}) 12... Be6 {[%emt 0:01:58]} 13. Ndf3 {[%emt 0:08:18]} h6 {[%emt 0:04:41]} 14. Ng6 {[%emt 0:10:01]} c4 {[%emt 0:09:24]} 15. Nxe7+ {[%emt 0:03:05]} Rxe7 {[%emt 0:00:12]} 16. Bf1 {[%emt 0:01:11]} Nf8 {[%emt 0:03:39]} 17. Ne5 {[%emt 0:06:33]} N6d7 18. g3 Nxe5 {[%emt 0:08:32]} 19. Bxe5 {[%emt 0:09:35]} Qd7 {[%emt 0:02:17]} 20. Bg2 {[%emt 0:03:27]} Rae8 21. Qd2 {[%emt 0:03:29]} Bf5 {[%emt 0:08:06]} 22. Bf4 Ng6 {[%emt 0:02:02]} 23. Rxe7 {[%emt 0:08:14]} Rxe7 {[%emt 0:00:11]} 24. Re1 {[%emt 0:00:36]} Rxe1+ 25. Qxe1 {[%emt 0:00:07]} Nxf4 {[%emt 0:06:07]} 26. gxf4 {[%emt 0:00:11]} Qe6 {[%emt 0:00:08]} 27. Qe5 {[%emt 0:05:33]} Be4 {[%emt 0:08:37]} 28. Qxe6 fxe6 {[%emt 0:00:06]} 29. Bxe4 {[%emt 0:14:45]} dxe4 {[%emt 0:00:04]} 30. Kf1 {[%emt 0:00:49]} Kf7 {[%emt 0:00:46]} 31. Ke2 {[%emt 0:00:01]} Kf6 {[%emt 0:00:07]} 32. Ke3 {[%emt 0:00:02]} Kf5 {[%emt 0:00:04]} 33. h4 {[%emt 0:02:01]} b5 {[%emt 0:18:51]} 34. b4 {[%emt 0:01:37]} h5 {[%emt 0:01:24]} 35. f3 {[%emt 0:00:37]} exf3 {[%emt 0:00:04]} 36. Kxf3 {[%emt 0:00:01]} g6 {[%emt 0:00:18]} 37. Ke3 {[%emt 0:00:02]} Kg4 {[%emt 0:00:29]} 38. Ke4 {[%emt 0:00:01]} Kxh4 {[%emt 0:00:07]} 39. Ke5 {[%emt 0:00:03]} Kg4 {[%emt 0:03:07]} 40. Kxe6 {[%emt 0:00:04]} h4 {[%emt 0:00:05]} 41. d5 {[%emt 0:30:03]} h3 {[%emt 0:30:05]} 42. d6 {[%emt 0:00:02]} h2 {[%emt 0:00:05]} 43. d7 {[%emt 0:00:03]} h1=Q {[%emt 0:00:10]} 44. d8=Q {[%emt 0:00:05]} Qe4+ {[%emt 0:02:18]} 45. Kf6 {[%emt 0:04:18]} Qxf4+ {[%emt 0:02:08]} 46. Kg7 {[%emt 0:00:00]} Qe5+ {[%emt 0:00:00]} 47. Kh6 {[%emt 0:00:00]} Qxc3 {[%emt 0:00:00]} 48. Qg5+ {[%emt 0:00:00]} Kf3 {[%emt 0:00:00]} 49. Qxb5 {[%emt 0:00:00]} Qd2+ {[%emt 0:00:00]} 50. Kxg6 {[%emt 0:00:00]} c3 {[%emt 0:00:00]} 51. Qf5+ {[%emt 0:00:00]} Ke3 {[%emt 0:00:00]} 52. Qe5+ {[%emt 0:00:00]} Kf2 {[%emt 0:00:00]} 53. Qh2+ {[%emt 0:00:00]} Ke1 {[%emt 0:00:00]} 54. Qh1+ {[%emt 0:00:00]} Ke2 {[%emt 0:00:00]} 55. Qh5+ {[%emt 0:00:00]} Kd3 {[%emt 0:00:00]} 56. Qf5+ {[%emt 0:00:00]} Ke3 {[%emt 0:00:00]} 57. Qe5+ {[%emt 0:00:00]} Kf3 {[%emt 0:00:00]} 58. Qf5+ {[%emt 0:00:00]} Qf4 {[%emt 0:00:00]} 59. Qd3+ {[%emt 0:00:00]} Qe3 {[%emt 0:00:00]} 60. Qf1+ {[%emt 0:00:00]} Ke4 {[%emt 0:00:19]} 61. Qc4+ {[%emt 0:06:01]} Qd4 {[%emt 0:00:48]} 62. Qe2+ {[%emt 0:00:41]} Kd5 {[%emt 0:00:59]} 63. Qb5+ {[%emt 0:01:40]} Kd6 {[%emt 0:00:34]} 64. Qb8+ {[%emt 0:01:06]} Kc6 {[%emt 0:02:39]} 65. Qe8+ {[%emt 0:01:51]} Kb6 {[%emt 0:00:24]} 66. Qb8+ {[%emt 0:01:10] [#]} Ka6 $1 {[%emt 0:00:59]} 67. Kh5 {[%emt 0:00:30]} Qd5+ {[%emt 0:02:28]} 68. Kh4 $19 {[%emt 0:00:29]} Qc4+ {[%emt 0:02:38]} 69. Kh3 {[%emt 0:00:23]} c2 {[%emt 0:01:23]} 70. b5+ {[%emt 0:00:20]} Ka5 {[%emt 0:00:39]} 71. Qxa7+ {[%emt 0:00:12]} Kb4 {[%emt 0:02:40]} 72. Qe7+ {[%emt 0:00:07]} Kc3 {[%emt 0:00:46]} 73. Qe5+ {[%emt 0:01:12]} Kd2 {[%emt 0:00:40]} 74. Qg5+ {[%emt 0:00:37]} Kc3 {[%emt 0:02:28]} 75. Qe5+ {[%emt 0:00:32]} Qd4 {[%emt 0:00:45]} 76. Qe1+ {[%emt 0:00:40]} Kb2 {[%emt 0:00:08]} 77. Qe2 {[%emt 0:00:28]} Kb1 {[%emt 0:00:33]} 0-1